bitfinex-derivatives/quotes_SOLF0:USTF0_20250411
["timestamp","ask_amount","ask_price","bid_price","bid_amount"]
[1744404630457,30.1525995,121.63,121.62,8.2254]
[1744404631260,30.1525995,121.63,121.61,8.28455222]
[1744404633151,30.1525995,121.63,121.62,8.2254]
[1744404633361,2.0958,121.7,121.61,0.05885222]
[1744404633557,30.12,121.69,121.62,3.37914754]
[1744404633761,30.12,121.69,121.65,8.2233]
[1744404634462,8.2224,121.67,121.66,0.06111407]
[1744404634664,8.2224,121.67,121.65,0.05971701]
[1744404635365,0.05388234,121.68,121.65,0.05971701]
[1744404635860,8.2227,121.66,121.65,0.05971701]
[1744404638065,38.3427,121.66,121.65,0.05971701]
[1744404639064,8.2246,121.64,121.56,963.0589]
[1744404639265,30.12,121.63,121.6,8.2266]
[1744404639565,38.3448,121.63,121.61,3.3815132]
[1744404639964,38.39765478,121.63,121.61,3.43988394]
[1744404640158,38.39765478,121.63,121.61,0.05837074]
[1744404640465,38.39765478,121.63,121.61,8.28417074]
[1744404640763,30.17285478,121.63,121.61,0.05837074]
[1744404640960,4.3428,121.7,121.62,3.38181549]
[1744404641264,4.3428,121.7,121.61,0.05837074]
[1744404641265,30.12,121.69,121.63,3.38181549]
[1744404641467,30.12,121.69,121.64,3.38181549]
[1744404641665,30.12,121.69,121.67,8.2216]
[1744404642062,30.17840829,121.69,121.67,8.27713607]
[1744404643662,30.17840829,121.69,121.68,8.2214]
[1744404644768,30.17840829,121.69,121.67,8.27713607]
[1744404648268,30.17840829,121.69,121.68,8.2214]
[1744404656475,30.17840829,121.69,121.68,11.59960404]
[1744404656678,0.05840829,121.69,121.68,11.59960404]
[1744404656876,30.1,121.73,121.68,3.37820404]
[1744404657175,30.1,121.73,121.67,0.05553607]
[1744404657376,8.2203,121.7,121.68,8.221]
[1744404657577,30.1,121.7,121.67,0.05553607]
[1744404657878,30.15441152,121.7,121.67,0.05553607]
[1744404658277,8.2207,121.69,121.67,8.27713607]
[1744404659176,8.2214,121.68,121.67,0.05553607]
[1744404659378,8.2214,121.68,121.67,3.43592439]
[1744404660280,8.2214,121.68,121.67,0.05553607]
[1744404660575,30.15441152,121.7,121.61,30.1]
[1744404660875,34.5207,121.69,121.62,3.38495667]
[1744404661180,8.2248,121.63,121.58,41.73941807]
[1744404661479,38.3248,121.63,121.59,3.38669071]
[1744404661675,38.3248,121.63,121.6,3.44508014]
[1744404661978,0.05658237,121.62,121.61,11.61239071]
[1744404662574,4.4207,121.69,121.61,3.38669071]
[1744404662575,30.1,121.66,121.61,3.38669071]
[1744404662780,30.1,121.66,121.62,3.38669071]
[1744404663080,30.1,121.66,121.63,3.38669071]
[1744404663285,38.3227,121.66,121.64,8.2241]
[1744404663882,38.38474764,121.66,121.64,8.28390249]
[1744404666091,30.16204764,121.66,121.65,8.2234]
[1744404669587,30.16204764,121.66,121.64,8.28350249]
[1744404669889,38.38494764,121.66,121.64,8.28350249]
[1744404670489,30.16204764,121.66,121.65,8.2234]
[1744404672086,0.06204764,121.66,121.65,8.2234]
[1744404672390,34.5207,121.69,121.65,8.2234]
[1744404672391,30.1,121.69,121.68,8.2214]
[1744404675093,30.1,121.69,121.68,11.60547733]
[1744404676895,30.1,121.69,121.68,3.38407733]
[1744404677096,30.1,121.69,121.67,0.05925884]
[1744404677596,38.321,121.69,121.67,0.05925884]
[1744404679598,38.321,121.69,121.67,8.28125884]
[1744404679896,38.321,121.69,121.68,3.38610562]
[1744404680396,38.321,121.69,121.67,8.28125884]
[1744404680596,38.321,121.69,121.68,3.38613066]
[1744404681597,8.2214,121.68,121.67,0.05925884]
[1744404681797,8.2214,121.68,121.67,3.44576551]
[1744404682097,38.3211,121.69,121.67,3.44576551]
[1744404682397,38.3211,121.69,121.67,0.05925884]
[1744404682600,38.3211,121.69,121.67,8.28125884]
[1744404683897,8.2214,121.68,121.67,0.05925884]
[1744404684097,8.2214,121.68,121.67,3.44599643]
[1744404684297,30.1,121.69,121.67,3.44599643]
[1744404684497,30.1,121.69,121.67,0.05925884]
[1744404685199,8.2214,121.68,121.67,0.05925884]
[1744404685398,30.1,121.69,121.61,30.1]
[1744404685600,30.1,121.69,121.62,3.3901262]
[1744404685601,2.1065,121.68,121.62,3.3901262]
[1744404685796,8.2234,121.65,121.63,8.2245]
[1744404685997,30.08,121.65,121.59,4.4282]
[1744404686398,8.2241,121.64,121.62,8.2251]
[1744404686697,0.05240401,121.63,121.61,0.05969955]
[1744404686897,0.05240401,121.63,121.61,8.28529955]
[1744404687198,30.08,121.62,121.61,0.05969955]
[1744404687599,38.3054,121.62,121.61,0.05969955]
[1744404690605,30.08,121.62,121.61,0.05969955]
[1744404691910,30.08,121.62,121.61,8.28579955]
[1744404693012,30.08,121.62,121.61,0.05969955]
[1744404693612,38.3054,121.62,121.61,0.05969955]
[1744404696111,30.08,121.62,121.61,0.05969955]
[1744404697110,30.08,121.62,121.61,8.28579955]
[1744404697515,30.08,121.62,121.61,0.05969955]
[1744404701112,30.08,121.62,121.61,8.28579955]
[1744404701815,30.08,121.62,121.61,0.05969955]
[1744404702416,30.08,121.62,121.61,8.28579955]
[1744404702716,30.08,121.62,121.61,0.05969955]
[1744404703119,30.08,121.62,121.61,8.28579955]
[1744404704521,30.08,121.62,121.61,0.05969955]
[1744404704717,38.3054,121.62,121.61,0.05969955]
[1744404705321,40.5506,121.62,121.61,0.05969955]
[1744404712327,32.3252,121.62,121.61,8.28579955]
[1744404712528,30.08,121.62,121.61,8.28579955]
[1744404712727,0.05240401,121.63,121.61,0.05969955]
[1744404712925,0.05240401,121.63,121.62,8.2254]
[1744404722337,0.05240401,121.63,121.61,8.28539955]
[1744404722536,30.08,121.62,121.61,0.05969955]
[1744404723031,38.3054,121.62,121.61,0.05969955]
[1744404724542,30.08,121.62,121.61,0.05969955]
[1744404725743,38.3054,121.62,121.61,0.05969955]
[1744404731250,30.08,121.62,121.61,0.05969955]
[1744404731745,0.05240401,121.63,121.62,8.2254]
[1744404733152,594.2081,121.73,121.61,30.15969955]
[1744404733353,30.1,121.7,121.61,30.1]
[1744404733948,38.3204,121.7,121.67,8.2215]
[1744404734148,30.1,121.7,121.62,16.4507]
[1744404734349,30.1,121.7,121.69,8.2207]
[1744404735856,30.1,121.7,121.68,8.221]
[1744404736057,30.1,121.7,121.67,0.05581166]
[1744404736354,38.3203,121.7,121.67,8.27731166]
[1744404736957,38.3203,121.7,121.68,8.2213]
[1744404737458,30.1,121.7,121.67,0.05581166]
[1744404737659,30.1,121.7,121.69,8.2207]
[1744404739061,30.1,121.7,121.68,8.2211]
[1744404740660,38.3201,121.7,121.68,8.2211]
[1744404741863,38.3201,121.7,121.67,8.27741166]
[1744404742268,38.3201,121.7,121.67,0.05581166]
[1744404743364,30.1,121.7,121.67,0.05581166]
[1744404743966,30.1,121.7,121.68,8.2214]
[1744404748271,8.2748326,121.71,121.68,8.2214]
[1744404748463,30.06,121.7,121.69,8.2207]
[1744404748774,38.2801,121.7,121.67,0.05581166]
[1744404749373,30.06,121.7,121.68,8.221]
[1744404749973,8.2201,121.7,121.68,8.221]
[1744404750169,38.2801,121.7,121.68,8.221]
[1744404751573,30.06,121.7,121.68,8.221]
[1744404751774,30.06,121.7,121.69,8.2207]
[1744404752776,30.06,121.7,121.67,0.05581166]
[1744404752969,30.06,121.7,121.6,4.2748]
[1744404753479,30.06,121.7,121.61,8.2256]
[1744404753982,0.05863903,121.67,121.64,0.05680488]
[1744404754173,30.06,121.66,121.61,8.2256]
[1744404754374,8.2249,121.63,121.61,8.2256]
[1744404754573,38.2849,121.63,121.61,8.2256]
[1744404754880,38.2849,121.63,121.6,8.2264]
[1744404755178,38.34117588,121.63,121.6,8.28157217]
[1744404758086,30.11627588,121.63,121.61,8.2261]
[1744404758274,30.11627588,121.63,121.6,0.05517217]
[1744404758583,30.11627588,121.63,121.62,8.2254]
[1744404760589,30.11627588,121.63,121.6,0.05517217]
[1744404760901,8.2261,121.61,121.6,0.05517217]
[1744404761889,8.2258,121.62,121.6,0.05517217]
[1744404762082,32.35317588,121.63,121.6,0.05517217]
[1744404762885,8.2261,121.61,121.6,0.05517217]
[1744404770193,32.35317588,121.63,121.6,0.05517217]
[1744404770894,8.2261,121.62,121.6,8.28187217]
[1744404771196,32.35317588,121.63,121.6,8.28187217]
[1744404771197,32.35317588,121.63,121.6,0.05517217]
[1744404771592,8.2261,121.61,121.6,0.05517217]
[1744404775693,32.35317588,121.63,121.6,0.05517217]
[1744404776098,8.2254,121.62,121.6,0.05517217]
[1744404777597,8.2261,121.61,121.6,0.05517217]
[1744404777799,32.35317588,121.63,121.53,4.2653]
[1744404777999,30.08,121.62,121.53,4.2653]
[1744404778299,8.2284,121.58,121.56,8.2292]
[1744404778497,38.3084,121.58,121.56,8.2292]
[1744404778700,30.08,121.58,121.56,8.2289]
[1744404778898,30.1387967,121.58,121.56,8.2838084]
[1744404779100,30.1387967,121.58,121.56,0.0549084]
[1744404779399,8.2288,121.57,121.56,0.0549084]
[1744404779600,30.1387967,121.58,121.56,0.0549084]
[1744404780200,8.2288,121.57,121.56,0.0549084]
[1744404780901,38.3672967,121.58,121.56,0.0549084]
[1744404782703,30.1387967,121.58,121.56,0.0549084]
[1744404783804,38.3671967,121.58,121.56,0.0549084]
[1744404784102,30.1387967,121.58,121.56,0.0549084]
[1744404784807,8.2288,121.57,121.56,0.0549084]
[1744404785005,30.1387967,121.58,121.56,0.0549084]
[1744404785405,38.3671967,121.58,121.56,8.2843084]
[1744404786005,8.2288,121.57,121.56,0.0549084]
[1744404788104,8.2306,121.55,121.52,8.2318]
[1744404788304,38.3106,121.55,121.52,8.2318]
[1744404788504,30.08,121.55,121.52,8.2318]
[1744404788705,30.08,121.55,121.46,30.08]
[1744404788894,30.08,121.55,121.45,42.36737228]
[1744404789098,30.08,121.55,121.46,30.08]
[1744404789400,0.06165315,121.51,121.5,8.2335]
[1744404789699,0.05230635,121.52,121.49,0.05425616]
[1744404791302,0.05230635,121.52,121.49,62.05425616]
[1744404793002,0.05230635,121.52,121.5,4.3539]
[1744404794302,0.05230635,121.52,121.51,8.2329]
[1744404796206,30.1,121.55,121.5,6.4936]
[1744404796608,30.1,121.55,121.54,8.2308]
[1744404797107,30.1,121.55,121.5,6.4936]
[1744404797307,30.1,121.55,121.53,8.28350756]
[1744404799511,30.1,121.55,121.54,8.2308]
[1744404804913,30.1,121.55,121.53,0.05240756]
[1744404804914,38.3301,121.55,121.53,0.05240756]
[1744404807818,38.3301,121.55,121.53,8.28380756]
[1744404808018,30.1,121.55,121.53,8.28380756]
[1744404808616,30.1,121.55,121.54,8.2308]
[1744404810518,30.1,121.55,121.53,0.05240756]
[1744404811314,38.3304,121.55,121.53,8.28380756]
[1744404812918,38.3304,121.55,121.53,0.05240756]
[1744404813621,30.1,121.55,121.53,8.28350756]
[1744404814221,30.1,121.55,121.53,0.05240756]
[1744404814622,40.4497,121.55,121.44,75.92414457]
[1744404814823,2.1036,121.54,121.46,8.236]
[1744404815317,2.1036,121.54,121.44,75.92414457]
[1744404815318,2.1036,121.54,121.45,46.19867228]
[1744404815816,0.05429503,121.51,121.48,0.05928992]
[1744404816017,8.2342,121.49,121.48,0.05928992]
[1744404823633,8.2366,121.46,121.41,4.2935]
[1744404823827,38.3366,121.46,121.41,4.2935]
[1744404824236,38.3366,121.46,121.43,8.238]
[1744404824532,30.1,121.46,121.41,4.2935]
[1744404824835,30.1538633,121.46,121.43,0.05804722]
[1744404825529,10.4851,121.45,121.43,0.05804722]
[1744404827734,38.3905633,121.46,121.43,8.29624722]
[1744404828129,0.0538633,121.46,121.43,0.05804722]
[1744404828328,30.1,121.45,121.43,0.05804722]
[1744404828738,30.1,121.45,121.44,8.2376]
[1744404829341,30.1,121.45,121.43,8.29594722]
[1744404829536,30.1,121.45,121.43,0.05804722]
[1744404830045,8.2376,121.44,121.43,0.05804722]
[1744404830445,30.1,121.45,121.43,0.05804722]
[1744404830648,8.2376,121.44,121.43,0.05804722]
[1744404831341,38.3371,121.45,121.43,0.05804722]
[1744404832647,8.2376,121.44,121.43,0.05804722]
[1744404833449,38.3373,121.45,121.43,0.05804722]
[1744404833748,30.1,121.45,121.43,0.05804722]
[1744404834347,0.0538633,121.46,121.45,8.2369]
[1744404834547,8.2902633,121.46,121.43,0.05804722]
[1744404834846,30.56,121.45,121.43,0.05804722]
[1744404835048,30.56,121.45,121.43,8.29604722]
[1744404836549,38.7974,121.45,121.43,0.05804722]
[1744404836949,30.56,121.45,121.43,0.05804722]
[1744404838249,8.2376,121.44,121.43,0.05804722]
[1744404839750,38.7972,121.45,121.43,0.05804722]
[1744404842052,38.7972,121.45,121.43,8.29634722]
[1744404842349,30.56,121.45,121.43,8.29634722]
[1744404842547,30.56,121.45,121.43,0.05804722]
[1744404842745,30.56,121.45,121.44,8.2376]
[1744404846753,0.0538633,121.46,121.43,0.05804722]
[1744404847254,592.88,121.54,121.43,30.61804722]
[1744404847451,30.56,121.53,121.44,6.6775]
[1744404847752,8.2325,121.52,121.44,6.6775]
[1744404847953,30.56,121.53,121.44,6.6775]
[1744404848255,8.2333,121.51,121.44,6.6775]
[1744404848552,30.61269573,121.5,121.47,0.05945328]
[1744404848752,8.2349,121.48,121.47,0.05945328]
[1744404848952,30.56,121.49,121.47,0.05945328]
[1744404849655,30.56,121.49,121.47,8.29465328]
[1744404849855,30.56,121.49,121.47,0.05945328]
[1744404850055,30.56,121.49,121.48,8.2349]
[1744404850451,30.56,121.49,121.47,0.05945328]
[1744404850649,30.56,121.49,121.47,8.29475328]
[1744404851550,30.56,121.49,121.48,8.2349]
[1744404852756,0.05269573,121.5,121.49,8.2342]
[1744404853555,30.56,121.53,121.52,8.2322]
[1744404853949,30.56,121.53,121.51,8.2324]
[1744404854150,30.56,121.53,121.46,30.56]
[1744404854351,38.7919,121.53,121.5,8.2332]
[1744404854556,0.06182721,121.51,121.5,8.2332]
[1744404854952,0.06182721,121.51,121.49,8.234]
[1744404855458,8.29472721,121.51,121.49,8.234]
[1744404855755,0.06182721,121.51,121.49,8.234]
[1744404857452,8.29472721,121.51,121.48,8.29212829]
[1744404858056,0.06182721,121.51,121.49,8.2341]
[1744404861958,0.06182721,121.51,121.48,8.29212829]
[1744404862757,0.06182721,121.51,121.48,0.05762829]
[1744404862961,30.34,121.5,121.48,0.05762829]
[1744404863659,8.2342,121.49,121.48,0.05762829]
[1744404868059,30.34,121.5,121.48,0.05762829]
[1744404868759,30.34,121.5,121.48,8.29222829]
[1744404870263,38.5738,121.5,121.48,0.05762829]
[1744404870663,30.34,121.5,121.48,0.05762829]
[1744404871062,8.2342,121.49,121.48,0.05762829]
[1744404873166,8.2355,121.48,121.42,30.34]
[1744404873666,8.2355,121.48,121.42,92.34]
[1744404874268,0.06296379,121.46,121.45,8.2369]
[1744404885271,30.34,121.5,121.44,0.05491147]
[1744404885472,30.34,121.52,121.44,0.05491147]
[1744404885671,30.34,121.52,121.45,30.34]
[1744404885876,38.5725,121.52,121.5,8.2335]
[1744404886378,38.62789111,121.52,121.5,8.28606331]
[1744404887275,8.2329,121.51,121.5,0.05256331]
[1744404887978,38.62799111,121.52,121.5,0.05256331]
[1744404892776,30.39539111,121.52,121.5,8.28566331]
[1744404892975,30.39539111,121.52,121.5,0.05256331]
[1744404894282,30.39539111,121.52,121.51,8.2329]
[1744404895884,38.62769111,121.52,121.5,0.05256331]
[1744404896684,38.62769111,121.52,121.5,8.28606331]
[1744404897283,38.62769111,121.52,121.5,0.05256331]
[1744404897879,30.39539111,121.52,121.5,8.28606331]
[1744404900281,30.39539111,121.52,121.51,8.2329]
[1744404900483,30.39539111,121.52,121.5,0.05256331]
[1744404901187,30.39539111,121.52,121.5,8.28576331]
[1744404901788,38.62799111,121.52,121.5,0.05256331]
[1744404902082,30.39539111,121.52,121.5,0.05256331]
[1744404902289,8.2329,121.51,121.5,0.05256331]
[1744404902591,30.39539111,121.52,121.43,4.237]
[1744404902787,8.2351,121.48,121.45,8.2364]
[1744404902979,30.08,121.48,121.43,2.1168]
[1744404903387,30.08,121.48,121.45,8.2369]
[1744404903684,30.13934056,121.48,121.45,8.29391489]
[1744404903890,30.13934056,121.48,121.47,8.2356]
[1744404904091,30.08,121.52,121.45,0.05701489]
[1744404904391,30.08,121.52,121.45,30.08]
[1744404904689,38.3123,121.52,121.49,8.2336]
[1744404905290,38.36743486,121.52,121.49,8.29218262]
[1744404905588,30.13513486,121.52,121.5,8.2335]
[1744404905788,30.13513486,121.52,121.49,0.05858262]
[1744404906594,30.13513486,121.52,121.5,8.2335]
[1744404906894,30.13513486,121.52,121.49,0.05858262]
[1744404907395,30.13513486,121.52,121.5,8.233]
[1744404907893,30.13513486,121.52,121.49,0.05858262]
[1744404908092,0.05513486,121.52,121.49,0.05858262]
[1744404910592,24.72,121.64,121.49,0.05858262]
[1744404910899,16.4481,121.65,121.48,32.2629]
[1744404910900,30.08,121.59,121.48,32.2629]
[1744404911202,30.08,121.59,121.57,8.2284]
[1744404911796,30.13454884,121.59,121.57,8.2897686]
[1744404912501,30.13454884,121.59,121.58,8.2281]
[1744404913198,599.0772,121.65,121.61,8.2256]
[1744404913391,30.08,121.64,121.56,30.08]
[1744404914303,0.05555626,121.61,121.59,0.05862819]
[1744404914600,30.13555626,121.61,121.59,0.05862819]
[1744404914807,38.36195626,121.61,121.59,0.05862819]
[1744404915306,30.13555626,121.61,121.59,0.05862819]
[1744404915802,30.13555626,121.61,121.6,8.2268]
[1744404917408,30.13555626,121.61,121.59,0.05862819]
[1744404919511,30.13555626,121.61,121.54,4.3604]
[1744404919806,30.13555626,121.61,121.53,30.08]
[1744404920110,2.2955,121.6,121.53,30.08]
[1744404920508,2.2955,121.6,121.58,8.228]
[1744404920812,0.0598576,121.58,121.54,62.0]
[1744404921004,0.0598576,121.58,121.55,4.36430207]
[1744404922309,0.0598576,121.58,121.57,8.2288]
[1744404924114,0.0598576,121.58,121.57,70.2288]
[1744404926118,0.0598576,121.58,121.57,8.2288]
[1744404929709,0.0598576,121.58,121.56,8.2291]
[1744404929914,30.1198576,121.58,121.55,0.05890207]
[1744404930314,30.1198576,121.58,121.56,8.2291]
[1744404931115,30.1198576,121.58,121.55,8.28870207]
[1744404931318,30.1198576,121.58,121.55,0.05890207]
[1744404932522,38.3484576,121.58,121.55,0.05890207]
[1744404933320,38.3484576,121.58,121.55,8.28870207]
[1744404934322,30.1198576,121.58,121.55,0.05890207]
[1744404934933,30.1198576,121.58,121.56,8.2288]
[1744404935226,30.1198576,121.58,121.55,0.05890207]
[1744404935426,30.1198576,121.58,121.57,8.2288]
[1744404937024,0.0598576,121.58,121.57,8.2288]
[1744404937528,30.06,121.61,121.57,8.2288]
[1744404937529,30.06,121.61,121.6,8.2268]
[1744404939621,0.05673374,121.62,121.61,8.2261]
[1744404941625,0.05673374,121.62,121.59,0.05703624]
[1744404941626,30.11673374,121.62,121.59,0.05703624]
[1744404942129,30.11673374,121.62,121.59,8.28413624]
[1744404943024,38.34253374,121.62,121.59,8.28413624]
[1744404946836,8.2264,121.61,121.59,0.05703624]
[1744404947331,30.11673374,121.62,121.59,0.05703624]
[1744404947531,30.11673374,121.62,121.53,30.06]
[1744404947736,30.06,121.62,121.53,30.06]
[1744404947935,8.2281,121.58,121.56,8.2291]
[1744404948136,38.2881,121.58,121.56,8.2291]
[1744404948441,8.2294,121.57,121.54,8.2305]
[1744404948834,8.29175401,121.57,121.54,8.28515294]
[1744404949337,8.29175401,121.57,121.55,8.2299]
[1744404952339,8.29175401,121.57,121.54,8.28505294]
[1744404953338,10.53935401,121.57,121.54,8.28505294]
[1744404953939,2.30995401,121.57,121.54,0.05465294]
[1744404954133,4.41115401,121.57,121.54,0.05465294]
[1744404954340,6.54085401,121.57,121.54,0.05465294]
[1744404955640,6.54085401,121.57,121.54,8.28515294]
[1744404956841,8.2298,121.56,121.54,8.28515294]
[1744404957042,6.54085401,121.57,121.54,0.05465294]
[1744404957243,0.06235401,121.57,121.54,0.05465294]
[1744404959348,0.06235401,121.57,121.56,8.2295]
[1744404961847,8.29115401,121.57,121.55,8.2298]
[1744404962949,8.29115401,121.57,121.54,8.28515294]
[1744404963755,0.06235401,121.57,121.54,8.28515294]
[1744404964460,0.06235401,121.57,121.54,0.05465294]
[1744404964653,6.58995401,121.57,121.54,0.05465294]
[1744404965152,8.2301,121.56,121.54,0.05465294]
[1744404965355,30.06,121.55,121.54,0.05465294]
[1744404965550,38.2901,121.55,121.54,0.05465294]
[1744404965755,30.06,121.55,121.49,62.0]
[1744404966353,30.06,121.55,121.52,8.232]
[1744404966859,30.11585761,121.55,121.52,8.28635522]
[1744404967358,8.2309,121.54,121.52,8.28635522]
[1744404967558,8.2309,121.54,121.52,0.05435522]
[1744404971663,30.11585761,121.55,121.52,0.05435522]
[1744404972664,38.34605761,121.55,121.52,8.28615522]
[1744404972960,8.28605761,121.55,121.52,8.28615522]
[1744404973165,30.08,121.54,121.52,8.28615522]
[1744404974566,8.28605761,121.55,121.52,8.28615522]
[1744404974756,30.08,121.54,121.52,8.28615522]
[1744404974960,0.05585761,121.55,121.52,0.05435522]
[1744404976164,0.05585761,121.55,121.54,8.2308]
[1744404976555,0.05585761,121.55,121.52,0.05435522]
[1744404976861,30.08,121.54,121.52,0.05435522]
[1744404977061,8.2315,121.53,121.52,0.05435522]
[1744404979164,40.5896,121.54,121.52,0.05435522]
[1744404979966,8.2315,121.53,121.52,0.05435522]
[1744404982560,32.3585,121.54,121.52,0.05435522]
[1744404982964,40.5898,121.54,121.52,0.05435522]
[1744404983764,8.2315,121.53,121.52,0.05435522]
[1744404984265,40.5897,121.54,121.52,0.05435522]
[1744404985166,8.2315,121.53,121.52,0.05435522]
[1744404985362,32.3585,121.54,121.47,4.2499]
[1744404985664,8.2332,121.51,121.47,2.0728]
[1744404985867,30.08,121.5,121.47,2.0728]
[1744404986264,30.08,121.5,121.48,8.2346]
[1744404986463,30.13950424,121.5,121.48,8.2346]
[1744404988969,30.13950424,121.5,121.48,8.2349]
[1744404989169,30.13950424,121.5,121.47,2.12730799]
[1744404989670,30.13950424,121.5,121.48,8.2349]
[1744404990171,30.13950424,121.5,121.47,8.28970799]
[1744404990569,38.37350424,121.5,121.47,8.28970799]
[1744404991571,30.13950424,121.5,121.48,8.2348]
[1744404992973,38.37310424,121.5,121.47,8.28970799]
[1744404994270,30.13950424,121.5,121.47,8.28970799]
[1744404994471,8.2342,121.49,121.47,0.05450799]
[1744404994671,30.13950424,121.5,121.47,0.05450799]
[1744404994870,38.37360424,121.5,121.47,0.05450799]
[1744404995071,30.13950424,121.5,121.47,0.05450799]
[1744404995672,8.2348,121.49,121.47,0.05450799]
[1744404996072,30.13950424,121.5,121.47,0.05450799]
[1744404996576,8.2349,121.48,121.47,0.05450799]
[1744405000577,8.2346,121.49,121.47,0.05450799]
[1744405002580,8.2349,121.48,121.47,0.05450799]
[1744405003483,2.224,121.49,121.39,2.2052]
[1744405003782,2.224,121.49,121.39,4.305]
[1744405003783,34.4488,121.48,121.39,4.305]
[1744405004078,8.2383,121.44,121.4,8.2399]
[1744405004279,30.08,121.43,121.4,8.2399]
[1744405004480,30.13298866,121.43,121.4,8.29579921]
[1744405004681,30.13298866,121.43,121.41,8.2395]
[1744405005381,30.13298866,121.43,121.4,0.05589921]
[1744405005984,30.13298866,121.43,121.4,8.29589921]
[1744405006979,30.13298866,121.43,121.41,8.2392]
[1744405007185,30.13298866,121.43,121.4,0.05589921]
[1744405007984,30.13298866,121.43,121.42,8.239]
[1744405009684,0.05298866,121.43,121.42,8.239]
[1744405009885,30.08,121.46,121.44,8.2373]
[1744405010079,30.08,121.46,121.39,66.305]
[1744405010281,30.08,121.46,121.44,8.2374]
[1744405010882,30.14096158,121.46,121.44,8.29301445]
[1744405013786,30.14096158,121.46,121.45,8.2369]
[1744405014288,0.06096158,121.46,121.45,8.2369]
[1744405033101,0.06096158,121.46,121.45,18.3892378]
[1744405033290,30.08,121.47,121.46,8.2362]
[1744405033494,30.08,121.5,121.46,10.1523378]
[1744405033695,30.08,121.51,121.49,10.1523378]
[1744405034404,30.13827343,121.51,121.49,10.20746797]
[1744405034909,30.13827343,121.51,121.49,18.44136797]
[1744405036912,40.29061123,121.51,121.49,0.05513017]
[1744405037312,10.1523378,121.5,121.49,0.05513017]
[1744405038513,10.1523378,121.5,121.45,8.2366]
[1744405038709,10.1523378,121.49,121.45,8.2366]
[1744405038915,30.08,121.48,121.46,8.2361]
[1744405039514,30.13886588,121.48,121.46,8.2985156]
[1744405041812,30.13886588,121.48,121.46,0.0624156]
[1744405043315,30.13886588,121.48,121.46,8.2986156]
[1744405045118,30.13886588,121.48,121.46,0.0624156]
[1744405045318,40.29120368,121.48,121.46,0.0624156]
[1744405046616,30.13886588,121.48,121.46,8.2985156]
[1744405046813,30.13886588,121.48,121.47,10.1523378]
[1744405047308,30.13886588,121.48,121.47,18.3879378]
[1744405048520,30.13886588,121.48,121.47,8.2356]
[1744405049022,30.13886588,121.48,121.46,8.2984156]
[1744405051822,30.13886588,121.48,121.46,0.0624156]
[1744405052022,40.29120368,121.48,121.46,0.0624156]
[1744405052521,30.13886588,121.48,121.46,8.2986156]
[1744405053615,30.13886588,121.48,121.47,8.2356]
[1744405055924,30.13886588,121.48,121.46,8.2983156]
[1744405056117,30.13886588,121.48,121.46,0.0624156]
[1744405060729,30.13886588,121.48,121.46,10.2147534]
[1744405061326,30.13886588,121.48,121.47,8.2356]
[1744405073037,30.13886588,121.48,121.46,8.2983156]
[1744405073231,30.13886588,121.48,121.46,0.0624156]
[1744405074340,30.13886588,121.48,121.47,8.2356]
[1744405076140,30.08,121.51,121.47,10.1523378]
[1744405076341,30.08,121.51,121.48,10.1523378]
[1744405077040,30.08,121.51,121.47,18.3875378]
[1744405077241,30.14150669,121.51,121.47,18.3875378]
[1744405077635,40.29384449,121.51,121.47,18.3875378]
[1744405078041,40.29384449,121.51,121.48,8.2348]
[1744405079044,40.29384449,121.51,121.47,8.2352]
[1744405079344,10.1523378,121.5,121.47,8.2352]
[1744405081946,10.1523378,121.5,121.46,0.0624156]
[1744405081947,10.1523378,121.49,121.46,8.2983156]
[1744405082341,10.1523378,121.49,121.46,0.0624156]
[1744405082543,10.1523378,121.5,121.46,0.0624156]
[1744405082744,10.1523378,121.5,121.47,8.2354]
[1744405083747,10.1523378,121.5,121.46,8.2983156]
[1744405086049,10.1523378,121.5,121.47,8.2351]
[1744405086242,40.29384449,121.51,121.47,8.2351]
[1744405086442,30.14150669,121.51,121.46,10.2147534]
[1744405086643,30.14150669,121.51,121.48,10.1523378]